Workbook

Sheet Start
B1: OM DENNE MALEN
B2: Bruk denne Arrangementsbudsjett-arbeidsboken til å spore påløpte utgifter og inntekter i løpet av et arrangement.
B3: Fyll ut arrangementsnavn og skriv inn detaljer i tabellene i Utgifter- og Inntekter-regnearket.
B4: Totale utgifter og Totale inntekter beregnes automatisk.
B5: Fortjeneste og tap-sammendrag og diagram oppdateres automatisk i Sammendrag-regnearket.
B6: Obs!
B7: Flere instruksjoner finnes i kolonne A i hvert regneark. Denne teksten er med hensikt skjult. Hvis du vil fjerne teksten, velger du kolonne A og deretter SLETT. Hvis du vil vise teksten, velger du kolonne A og endrer deretter skriftfarge.
B8: Hvis du vil finne ut mer om tabeller, trykker du på SKIFT og deretter på F10 i en tabell. Velg alternativet TABELL, og velg deretter ALTERNATIV TEKST.

Sheet Utgifter
A1: Skriv inn beregnet og faktisk utgifter for hver kategori i de respektive tabellene i dette regnearket. Totale utgifter beregnes automatisk. Du finner nyttige instruksjoner om hvordan du bruker dette regnearket, i cellene i denne kolonnen. Trykk på PIL NED for å komme i gang.
A2: Skriv inn arrangementsnavn i cellen til høyre for å tilpasse tittelen på dette og andre regneark. | B2: Arrangementsbudsjett for Arrangementsnavn
A3: Etiketten for utgifter står i celle G3. | G3: Utgifter
A4: Beregnet-etiketten er i celle G4 og Faktisk-etiketten er i celle H4. | G4: Beregnet | H4: Faktisk
A5: Etiketten for totale utgifter finnes i cellen til høyre. Beregnet totale utgifter beregnes automatisk i celle G5. Faktisk totalutgifter og datastolpe som viser faktisk totale utgifter, oppdateres automatisk i celle H5. Neste instruksjon finnes i celle A7. | B5: Totale utgifter | G5: =SUM(C12,C20,C26,C33,G12,G20,G25) -> kr 1,145.00 | H5: =SUM(D12,D20,D26,D33,H12,H20,H25) -> kr 395.00
A7: Skriv inn stedsutgifter i tabellen som starter i cellen til høyre, og forfriskningsutgifter i tabellen som starter i celle F7. Neste instruksjon finnes i celle A14. | B7: Sted | C7: Beregnet | D7: Faktisk | F7: Forfriskninger | G7: Estimert | H7: Faktisk
B8: Utgifter for lokaler | C8: kr 500.00 | D8: kr 250.00 | F8: Mat
B9: Stedspersonale | C9: kr 400.00 | D9: kr 50.00 | F9: Drikke
B10: Utstyr | F10: Duker
B11: Bord og stoler | F11: Ansatte og tips
B12: Totalt | C12: =SUBTOTAL(109,Stedsutgifter[Beregnet]) -> kr 900.00 | D12: =SUBTOTAL(109,Stedsutgifter[Faktisk]) -> kr 300.00 | F12: Totalt | G12: =SUBTOTAL(109,Forfriskningsutgifter[Estimert]) -> kr 0.00 | H12: =SUBTOTAL(109,Forfriskningsutgifter[Faktisk]) -> kr 0.00
A14: Skriv inn dekorasjonsutgifter i tabellen som starter i cellen til høyre, og programutgifter i tabellen som starter i celle F14. Neste instruksjon er i celle A22. | B14: Dekorasjoner | C14: Estimert | D14: Faktisk | F14: Program | G14: Estimert | H14: Faktisk
B15: Blomster | C15: kr 200.00 | D15: kr 50.00 | F15: Underholdning
B16: Lys | F16: Talere
B17: Belysning | F17: Reise
B18: Ballonger | F18: Hotell
B19: Papirrekvisita | F19: Annet
B20: Totalt | C20: =SUBTOTAL(109,Dekorasjonsutgifter[Estimert]) -> kr 200.00 | D20: =SUBTOTAL(109,Dekorasjonsutgifter[Faktisk]) -> kr 50.00 | F20: Totalt | G20: =SUBTOTAL(109,Programutgifter[Estimert]) -> kr 0.00 | H20: =SUBTOTAL(109,Programutgifter[Faktisk]) -> kr 0.00
A22: Skriv inn publisitetsutgifter i tabellen som starter i cellen til høyre, og premieutgifter i tabellen som starter i celle F22. Neste instruksjon er i celle A28. | B22: Publisitet | C22: Estimert | D22: Faktisk | F22: Premier | G22: Estimert | H22: Faktisk
B23: Grafikkarbeid | C23: kr 45.00 | D23: kr 45.00 | F23: Bånd/plaketter/pokaler
B24: Kopiering/utskrift | F24: Gaver
B25: Porto | F25: Totalt | G25: =SUBTOTAL(109,Premieutgifter[Estimert]) -> kr 0.00 | H25: =SUBTOTAL(109,Premieutgifter[Faktisk]) -> kr 0.00
B26: Totalt | C26: =SUBTOTAL(109,Publisitetsutgifter[Estimert]) -> kr 45.00 | D26: =SUBTOTAL(109,Publisitetsutgifter[Faktisk]) -> kr 45.00
A28: Skriv inn diverse utgifter i tabell fra cellen til høyre. | B28: Diverse | C28: Estimert | D28: Faktisk
B29: Telefon
B30: Transport
B31: Skrivepapir
B32: Fakstjenester
B33: Totalt | C33: =SUBTOTAL(109,DiverseUtgifter[Estimert]) -> kr 0.00 | D33: =SUBTOTAL(109,DiverseUtgifter[Faktisk]) -> kr 0.00

Sheet Inntekter
A1: Skriv inn beregnet og faktisk inntekter fra hver kategori i de respektive tabellene i dette regnearket. Totalinntekt beregnes automatisk. Du finner nyttige instruksjoner om hvordan du bruker dette regnearket, i cellene i denne kolonnen. Trykk på PIL NED for å komme i gang.
A2: Arrangementsnavnet oppdateres automatisk i cellen til høyre. | B2: =Utgifter!B2 -> Arrangementsbudsjett for Arrangementsnavn
A3: Inntektsetiketten står i celle F3. | F3: Inntekter
A4: Beregnet-etiketten er i celle F4 og Faktisk-etiketten er i celle G4. | F4: Beregnet | G4: Faktisk
A5: Etiketten for totale inntekter er i cellen til høyre. Beregnet totalsum inntekter beregnes automatisk i celle F5. Faktisk totalsum inntekter og datastolpe som viser faktiske totale inntekter, oppdateres automatisk i celle G5. | B5: Totale inntekter | F5: =SUM(Adgang[[#Totals],[Beregnet totalsum]],AnnonserIProgrammet[[#Totals],[Beregnet totalsum]],UtstillereOgLeverandører[[#Totals],[Beregnet totalsum]],SalgAvElement[[#Totals],[Beregnet totalsum]]) -> kr 1,936.00 | G5: =SUM(Adgang[[#Totals],[Faktisk totalsum]],AnnonserIProgrammet[[#Totals],[Faktisk totalsum]],UtstillereOgLeverandører[[#Totals],[Faktisk totalsum]],SalgAvElement[[#Totals],[Faktisk totalsum]]) -> kr 1,831.00
A6: Adgang-etiketten finnes i cellen til høyre. | B6: Adgang
A7: Skriv inn beregnet og faktisk antall gjester med billettsatser i tabellen som begynner i cellen til høyre. Beregnet og faktisk inntekter fra adgang beregnes automatisk. Neste instruksjon finnes i celle A12. | B7: Beregnet | C7: Faktisk | D7: Type | E7: Pris | F7: Beregnet totalsum | G7: Faktisk totalsum
B8: 300 | C8: 278 | D8: Voksne @ | E8: kr 5.00 | F8: =B8*E8 -> kr 1,500.00 | G8: =C8*E8 -> kr 1,390.00
B9: 197 | C9: 195 | D9: Barn @ | E9: kr 2.00 | F9: =B9*E9 -> kr 394.00 | G9: =C9*E9 -> kr 390.00
B10: 42 | C10: 51 | D10: Annet @ | E10: kr 1.00 | F10: kr 42.00 | G10: kr 51.00
F11: =SUBTOTAL(109,Adgang[Beregnet totalsum]) -> kr 1,936.00 | G11: =SUBTOTAL(109,Adgang[Faktisk totalsum]) -> kr 1,831.00
A12: Etiketten for annonser i programmet finnes i cellen til høyre. | B12: Annonser i programmet
A13: Skriv inn beregnet og faktisk antall annonser i programmet og annonsesatser i tabellen som begynner i cellen til høyre. Beregnede og faktiske inntekter fra annonser beregnes automatisk. Neste instruksjon finnes i celle A18. | B13: Beregnet | C13: Faktisk | D13: Type | E13: Pris | F13: Beregnet totalsum | G13: Faktisk totalsum
D14: For- og baksider @ | F14: =B14*E14 -> kr 0.00 | G14: =C14*E14 -> kr 0.00
D15: Halvsider @ | F15: =B15*E15 -> kr 0.00 | G15: =C15*E15 -> kr 0.00
D16: Kvartsider @ | F16: kr 0.00 | G16: kr 0.00
F17: =SUBTOTAL(109,AnnonserIProgrammet[Beregnet totalsum]) -> kr 0.00 | G17: =SUBTOTAL(109,AnnonserIProgrammet[Faktisk totalsum]) -> kr 0.00
A18: Etikett for utstillere eller leverandører er i cellen til høyre. | B18: Utstillere/leverandører
A19: Skriv inn beregnet og faktisk antall utstillere og leverandører og standsatser i tabellen som begynner i cellen til høyre. Beregnede og faktiske inntekter beregnes automatisk. Neste instruksjon finnes i celle A24. | B19: Beregnet | C19: Faktisk | D19: Type | E19: Pris | F19: Beregnet totalsum | G19: Faktisk totalsum
D20: Store stand @ | F20: =B20*E20 -> kr 0.00 | G20: =C20*E20 -> kr 0.00
D21: Middels stand @ | F21: =B21*E21 -> kr 0.00 | G21: =C21*E21 -> kr 0.00
D22: Små stand @ | F22: kr 0.00 | G22: kr 0.00
F23: =SUBTOTAL(109,UtstillereOgLeverandører[Beregnet totalsum]) -> kr 0.00 | G23: =SUBTOTAL(109,UtstillereOgLeverandører[Faktisk totalsum]) -> kr 0.00
A24: Etiketten for salg av elementer finnes i cellen til høyre. | B24: Salg av element
A25: Skriv inn beregnet og faktisk antall elementer solgt og elementsatser i tabellen som begynner i cellen til høyre. Beregnede og faktiske inntekter beregnes automatisk. | B25: Beregnet | C25: Faktisk | D25: Type | E25: Pris | F25: Beregnet totalsum | G25: Faktisk totalsum
D26: Elementer @ | F26: =B26*E26 -> kr 0.00 | G26: =C26*E26 -> kr 0.00
D27: Elementer @ | F27: =B27*E27 -> kr 0.00 | G27: =C27*E27 -> kr 0.00
D28: Elementer @ | F28: kr 0.00 | G28: kr 0.00
D29: Elementer @ | F29: kr 0.00 | G29: kr 0.00
F30: =SUBTOTAL(109,SalgAvElement[Beregnet totalsum]) -> kr 0.00 | G30: =SUBTOTAL(109,SalgAvElement[Faktisk totalsum]) -> kr 0.00

Sheet Sammendrag
A1: Fortjeneste og tap-sammendrag og diagram som viser totale inntekter og utgifter, oppdateres automatisk i dette regnearket. Du finner nyttige instruksjoner om hvordan du bruker dette regnearket, i cellene i denne kolonnen. Trykk på PIL NED for å komme i gang.
A2: Arrangementsnavn oppdateres automatisk i cellen til høyre. | B2: =Utgifter!B2 -> Arrangementsbudsjett for Arrangementsnavn
A3: Etikett for fortjeneste og tap-sammendrag er i celle C3. Neste instruksjon finnes i celle A5. | C3: Fortjeneste og tap-sammendrag
A5: Totalsumtabellen som starter i cellen til høyre, oppdateres automatisk Neste instruksjon er i celle A9. | B5: Totalt | C5: Beregnet | D5: Faktisk
B6: Totale inntekter | C6: =Inntekter!F5 -> kr 1,936.00 | D6: =Inntekter!G5 -> kr 1,831.00
B7: Totale utgifter | C7: =Utgifter!G5 -> kr 1,145.00 | D7: =Utgifter!H5 -> kr 395.00
B8: Total fortjeneste (eller tap) | C8: =C6-C7 -> kr 791.00 | D8: =D6-D7 -> kr 1,436.00
A9: Gruppert stolpediagram som viser sammenligning av beregnet og faktisk totale inntekter og totale utgifter, er i cellen til høyre. | B9: Gruppert stolpediagram som viser sammenligning av beregnet og faktisk totale inntekter og totale utgifter, er i denne cellen.
